[Event "29th Czech Open-Rapid 2018"]
[Site "Pardubice"]
[Date "2018.07.19"]
[Round "4"]
[White "Chrz, Pavel"]
[Black "Soural, Jan"]
[Result "1/2-1/2"]
[ECO "D85"]
[WhiteElo "2038"]
[BlackElo "2202"]
[Annotator "NA"]
[PlyCount "100"]
[EventDate "2018.07.18"]
[EventType "swiss"]
[EventCountry "CZE"]
[SourceTitle "playchess.com"]
[Source "ChessBase"]
[SourceQuality "1"]
[TimeControl "900+10"]

1. d4 {[%emt 0:00:33]} Nf6 {[%emt 0:00:00]} 2. c4 {[%emt 0:00:05]} g6 {[%emt 0:00:01]} 3. Nc3 {[%emt 0:00:03]} d5 {[%emt 0:00:22]} 4. cxd5 {[%emt 0:00:09]} Nxd5 {[%emt 0:00:01]} 5. e4 {[%emt 0:00:02]} Nxc3 {[%emt 0:00:02]} 6. bxc3 {[%emt 0:00:02]} Bg7 {[%emt 0:00:06]} 7. Bb5+ {[%emt 0:01:27]} c6 {[%emt 0:00:07]} 8. Ba4 {[%emt 0:00:39]} O-O {[%emt 0:00:04]} 9. Ne2 {[%emt 0:00:27]} b5 {[%emt 0:01:42]} 10. Bb3 {[%emt 0:00:40]} Bb7 {[%emt 0:00:41]} 11. O-O {[%emt 0:01:52]} e6 {[%emt 0:02:31]} 12. Ba3 {[%emt 0:01:45]} Re8 {[%emt 0:00:01]} 13. f4 {[%emt 0:00:23]} c5 {[%emt 0:00:38]} 14. e5 {[%emt 0:02:14]} c4 {[%emt 0:04:39]} 15. Bc2 {[%emt 0:00:04]} Nc6 {[%emt 0:00:06]} 16. Bc5 {[%emt 0:02:22]} Ne7 {[%emt 0:01:39]} 17. Bxe7 {[%emt 0:01:03]} Rxe7 {[%emt 0:00:11]} 18. Ng3 {[%emt 0:00:21]} Rb8 {[%emt 0:00:23]} 19. a4 {[%emt 0:01:52]} a6 {[%emt 0:00:10]} 20. axb5 {[%emt 0:00:02]} axb5 {[%emt 0:00:01]} 21. Rb1 {[%emt 0:00:28]} Qa5 {[%emt 0:00:59]} 22. Rb4 {[%emt 0:00:32]} f5 {[%emt 0:01:15]} 23. exf6 {[%emt 0:00:34]} Bxf6 {[%emt 0:00:01]} 24. Be4 {[%emt 0:00:25]} Rd7 {[%emt 0:02:22]} 25. Bxb7 {[%emt 0:00:31]} Rbxb7 {[%emt 0:00:06]} 26. Ne4 {[%emt 0:00:08]} Bxd4+ {[%emt 0:00:16]} 27. cxd4 {[%emt 0:00:26]} Qxb4 {[%emt 0:00:01]} 28. Nf6+ {[%emt 0:00:01]} Kf7 {[%emt 0:00:19]} 29. Nxd7 {[%emt 0:00:05]} Rxd7 {[%emt 0:00:01]} 30. Qf3 {[%emt 0:00:20]} Qd6 {[%emt 0:00:25]} 31. Rd1 {[%emt 0:00:08]} b4 {[%emt 0:00:01]} 32. g4 {[%emt 0:00:08]} Qd5 {[%emt 0:00:23]} 33. Qf2 {[%emt 0:00:09]} b3 {[%emt 0:00:11]} 34. Qh4 {[%emt 0:00:02]} Kg8 {[%emt 0:00:24]} 35. f5 {[%emt 0:00:04]} c3 {[%emt 0:00:28]} 36. fxe6 c2 {[%emt 0:00:02]} 37. Re1 {[%emt 0:00:40]} Qxd4+ {[%emt 0:00:10]} 38. Kh1 {[%emt 0:00:01]} Qd5+ {[%emt 0:00:12]} 39. Kg1 {[%emt 0:00:02]} Qc5+ {[%emt 0:00:11]} 40. Kh1 {[%emt 0:00:03]} Re7 {[%emt 0:00:10]} 41. Qh6 {[%emt 0:00:24]} Qd5+ {[%emt 0:00:11]} 42. Kg1 {[%emt 0:00:01]} Qd4+ {[%emt 0:00:08]} 43. Kh1 {[%emt 0:00:02]} b2 {[%emt 0:00:10]} 44. Rf1 {[%emt 0:00:21]} Qg7 45. Qd2 {[%emt 0:00:05]} h5 {[%emt 0:00:26]} 46. Qxc2 {[%emt 0:00:07]} hxg4 {[%emt 0:00:02]} 47. Rb1 {[%emt 0:00:29]} Qf6 {[%emt 0:00:13]} 48. Qxb2 {[%emt 0:00:14]} Qxb2 {[%emt 0:00:03]} 49. Rxb2 {[%emt 0:00:01]} Rxe6 {[%emt 0:00:00]} 50. Rb4 {[%emt 0:00:11]} Kf7 {[%emt 0:00:07]} 1/2-1/2

[Event "29th Czech Open-Rapid 2018"]
[Site "Pardubice"]
[Date "2018.07.19"]
[Round "4"]
[White "Hajek, Jiri"]
[Black "Turner, Jan"]
[Result "1/2-1/2"]
[ECO "B00"]
[WhiteElo "2024"]
[BlackElo "2332"]
[Annotator "NA"]
[PlyCount "121"]
[EventDate "2018.07.18"]
[EventType "swiss"]
[EventCountry "CZE"]
[SourceTitle "playchess.com"]
[Source "ChessBase"]
[SourceQuality "1"]
[TimeControl "900+10"]

1. e4 {[%emt 0:00:00]} Nc6 {[%emt 0:00:00]} 2. Nc3 {[%emt 0:00:00]} Nf6 {[%emt 0:00:03]} 3. d4 {[%emt 0:00:32]} d6 {[%emt 0:00:24]} 4. d5 {[%emt 0:01:13]} Nb8 {[%emt 0:00:05] B00: Queen's Fianchetto Defence, Nimzowitsch Defence} 5. Nf3 {[%emt 0:00:29]} g6 {[%emt 0:00:10]} 6. Bg5 {[%emt 0:00:56]} (6. Be2 Bg7 7. O-O O-O 8. Re1 c6 9. Bf4 b5 10. a3 a6 11. Qd2 Bb7 12. Rad1 Nbd7 13. dxc6 Bxc6 14. e5 dxe5 15. Nxe5 Nxe5 16. Bxe5 Qxd2 17. Rxd2 {½-½ (48) Anand,V (2782)-Carlsen,M (2837) Riadh 2017}) 6... Bg7 {[%emt 0:00:01]} 7. Be2 {[%emt 0:00:18]} c6 {[%emt 0:00:08]} 8. dxc6 $146 {[%emt 0:01:07]} ({Predecessor:} 8. O-O Bg4 9. Re1 Nbd7 10. Nd2 Bxe2 11. Qxe2 h6 12. Bf4 O-O {0-1 (68) Ma,Z (2465)-Lu,S (2620) China 2017}) 8... Nxc6 {[%emt 0:00:09]} 9. e5 {[%emt 0:00:19]} dxe5 {[%emt 0:00:16]} 10. Qxd8+ {[%emt 0:00:04]} Nxd8 {[%emt 0:02:08]} 11. Nxe5 {[%emt 0:00:17]} O-O {[%emt 0:00:02]} 12. O-O-O {[%emt 0:00:39]} Ne6 {[%emt 0:00:43]} 13. Be3 {[%emt 0:00:18]} a6 {[%emt 0:02:05]} 14. Bf3 {[%emt 0:00:04]} Rb8 {[%emt 0:00:18]} 15. Bb6 {[%emt 0:00:35]} Ng5 {[%emt 0:00:11]} 16. Be2 {[%emt 0:02:11]} Nge4 {[%emt 0:00:35]} 17. Nxe4 {[%emt 0:00:20]} Nxe4 {[%emt 0:00:01]} 18. Nd7 {[%emt 0:00:49]} Bxd7 {[%emt 0:00:02]} 19. Rxd7 {[%emt 0:00:01]} Nf6 {[%emt 0:00:12]} 20. Rd3 {[%emt 0:02:19]} Rbc8 {[%emt 0:00:37]} 21. a4 {[%emt 0:00:50]} e6 {[%emt 0:00:32]} 22. Bf3 {[%emt 0:00:40]} e5 {[%emt 0:00:26]} 23. Rd6 {[%emt 0:00:27]} e4 {[%emt 0:00:38]} 24. Be2 {[%emt 0:00:06]} Bh6+ {[%emt 0:01:10]} 25. Kb1 {[%emt 0:00:03]} Bf4 {[%emt 0:00:20]} 26. Rxf6 {[%emt 0:00:06]} Be5 {[%emt 0:00:00]} 27. Bg4 {[%emt 0:01:51]} Rc4 {[%emt 0:01:40]} 28. b3 {[%emt 0:00:12]} Rc3 {[%emt 0:00:03]} 29. Ba5 {[%emt 0:02:12]} Bxf6 {[%emt 0:00:02]} 30. Bxc3 {[%emt 0:00:01]} Bxc3 {[%emt 0:00:01]} 31. Rd1 {[%emt 0:00:17]} b5 {[%emt 0:00:08]} 32. Bd7 {[%emt 0:00:11]} Rd8 {[%emt 0:00:21]} 33. Rd5 {[%emt 0:00:50]} bxa4 {[%emt 0:00:31]} 34. Bc6 {[%emt 0:00:08]} Rc8 {[%emt 0:01:42]} 35. Bxa4 {[%emt 0:00:01]} f5 {[%emt 0:00:01]} 36. Rd7 {[%emt 0:00:03]} Be1 {[%emt 0:00:03]} 37. b4 {[%emt 0:00:17]} Bxb4 {[%emt 0:00:16]} 38. Bb3+ {[%emt 0:00:01]} Kh8 {[%emt 0:00:01]} 39. Kc1 {[%emt 0:00:24]} a5 {[%emt 0:00:20]} 40. Kd1 {[%emt 0:00:05]} f4 {[%emt 0:00:33]} 41. Ke2 {[%emt 0:00:02]} a4 {[%emt 0:00:12]} 42. Bxa4 {[%emt 0:00:05]} Ra8 {[%emt 0:00:04]} 43. Bb3 {[%emt 0:00:05]} Ra1 {[%emt 0:00:02]} 44. c3 {[%emt 0:00:26]} Bxc3 {[%emt 0:00:01]} 45. Rd1 {[%emt 0:00:15]} Ra7 {[%emt 0:00:39]} 46. g3 {[%emt 0:00:16]} Ra3 {[%emt 0:01:21]} 47. Bd5 {[%emt 0:00:02]} f3+ {[%emt 0:00:33]} 48. Ke3 {[%emt 0:00:01]} Be1+ {[%emt 0:00:17]} 49. Kxe4 {[%emt 0:00:02]} Bxf2 {[%emt 0:00:02]} 50. Rd3 {[%emt 0:00:14]} Rxd3 {[%emt 0:00:12]} 51. Kxd3 {[%emt 0:00:02]} Bg1 {[%emt 0:00:01]} 52. Bxf3 {[%emt 0:00:04]} Bxh2 {[%emt 0:00:01]} 53. g4 {[%emt 0:00:03]} Bf4 {[%emt 0:00:05]} 54. Ke4 {[%emt 0:00:01]} Bc1 {[%emt 0:00:01]} 55. Be2 {[%emt 0:00:07]} Kg7 {[%emt 0:00:01]} 56. Kf3 {[%emt 0:00:01]} Kf6 {[%emt 0:00:00]} 57. Kg3 {[%emt 0:00:06]} Kg5 {[%emt 0:00:01]} 58. Kh3 {[%emt 0:00:02]} Kf4 {[%emt 0:00:04]} 59. Bd1 {[%emt 0:00:05]} Bd2 {[%emt 0:00:03]} 60. Be2 {[%emt 0:00:09]} Be1 $15 {[%emt 0:00:01]} 61. Bd1 {[%emt 0:00:05]} 1/2-1/2

[Event "29th Czech Open-Rapid 2018"]
[Site "Pardubice"]
[Date "2018.07.19"]
[Round "4"]
[White "Jazdanovs, Aleksandrs"]
[Black "Domogaev, Sergey"]
[Result "0-1"]
[ECO "C88"]
[WhiteElo "2013"]
[BlackElo "2337"]
[Annotator "NA"]
[PlyCount "88"]
[EventDate "2018.07.18"]
[EventType "swiss"]
[EventCountry "CZE"]
[SourceTitle "playchess.com"]
[Source "ChessBase"]
[SourceQuality "1"]
[TimeControl "900+10"]

1. e4 {[%emt 0:00:00]} e5 {[%emt 0:00:00]} 2. Nf3 {[%emt 0:00:04]} Nc6 {[%emt 0:00:00]} 3. Bb5 {[%emt 0:00:11]} a6 {[%emt 0:00:00]} 4. Ba4 {[%emt 0:00:11]} Nf6 {[%emt 0:00:00]} 5. O-O {[%emt 0:00:13]} Be7 {[%emt 0:00:03]} 6. Re1 {[%emt 0:00:16]} b5 {[%emt 0:00:01]} 7. Bb3 {[%emt 0:00:03]} d6 {[%emt 0:00:05]} 8. a4 {[%emt 0:00:18]} Na5 {[%emt 0:01:42]} 9. axb5 {[%emt 0:00:20]} Nxb3 {[%emt 0:00:03]} 10. cxb3 {[%emt 0:00:02]} Bb7 {[%emt 0:00:02]} 11. bxa6 {[%emt 0:01:03]} Bxe4 {[%emt 0:00:49]} 12. Nc3 {[%emt 0:00:03]} Bd3 {[%emt 0:00:07]} 13. b4 {[%emt 0:01:18]} Bxa6 {[%emt 0:02:04]} 14. d4 {[%emt 0:00:11]} e4 {[%emt 0:00:10]} 15. Nxe4 {[%emt 0:00:10]} Nxe4 16. Rxe4 {[%emt 0:00:09]} O-O {[%emt 0:00:05]} 17. Rg4 {[%emt 0:01:26]} Qd7 {[%emt 0:01:22]} 18. Nd2 {[%emt 0:01:23]} Be2 19. Qxe2 {[%emt 0:00:02]} Rxa1 {[%emt 0:01:17]} 20. Nb3 {[%emt 0:00:01]} f5 {[%emt 0:02:44]} 21. Rg3 {[%emt 0:02:11]} Raa8 {[%emt 0:00:24]} 22. Bh6 {[%emt 0:00:20]} Bf6 {[%emt 0:00:04]} 23. Qc4+ {[%emt 0:00:16]} Kh8 {[%emt 0:00:02]} 24. Bf4 {[%emt 0:00:32]} Rfe8 {[%emt 0:00:10]} 25. h3 {[%emt 0:00:09]} Re4 {[%emt 0:00:55]} 26. Qd5 {[%emt 0:01:35]} c6 {[%emt 0:00:15]} 27. Qxd6 {[%emt 0:00:02]} Qxd6 {[%emt 0:00:08]} 28. Bxd6 {[%emt 0:00:01]} Re1+ {[%emt 0:01:10]} 29. Kh2 {[%emt 0:00:05]} Re2 {[%emt 0:00:02]} 30. Rf3 {[%emt 0:00:24]} Rxb2 {[%emt 0:00:08]} 31. Na5 {[%emt 0:00:01]} Rc8 {[%emt 0:00:53]} 32. Rxf5 {[%emt 0:00:27]} Bxd4 {[%emt 0:00:12]} 33. Nxc6 {[%emt 0:00:15]} Bb6 {[%emt 0:01:59]} 34. Ne7 {[%emt 0:01:39]} Rd8 {[%emt 0:00:24]} 35. Be5 {[%emt 0:00:36]} Rxf2 {[%emt 0:00:13]} 36. Rg5 {[%emt 0:00:22]} Rf7 {[%emt 0:00:26]} 37. Nc6 {[%emt 0:00:54]} Rc8 {[%emt 0:00:17]} 38. b5 {[%emt 0:00:01]} h6 39. Rg6 {[%emt 0:00:17]} Kh7 {[%emt 0:00:12]} 40. Re6 {[%emt 0:00:03]} Rb7 {[%emt 0:00:06]} 41. Nb4 {[%emt 0:01:55]} Rc5 {[%emt 0:00:15]} 42. Bd6 {[%emt 0:01:11]} Rxb5 43. Nd3 {[%emt 0:00:31]} Rd7 {[%emt 0:00:22]} 44. Nf4 {[%emt 0:00:19]} g5 {[%emt 0:00:26]} 0-1

[Event "29th Czech Open-Rapid 2018"]
[Site "Pardubice"]
[Date "2018.07.19"]
[Round "4"]
[White "Haase, Pavel"]
[Black "Maltsevskyay, Aleksandra"]
[Result "0-1"]
[ECO "E97"]
[WhiteElo "1975"]
[BlackElo "2297"]
[Annotator "NA"]
[PlyCount "86"]
[EventDate "2018.07.18"]
[EventType "swiss"]
[EventCountry "CZE"]
[SourceTitle "playchess.com"]
[Source "ChessBase"]
[SourceQuality "1"]
[TimeControl "900+10"]

1. c4 {[%emt 0:00:00] Besenthal,K} Nf6 {[%emt 0:00:05]} 2. Nc3 {[%emt 0:00:00]} g6 {[%emt 0:00:03]} 3. d4 {[%emt 0:00:03]} Bg7 {[%emt 0:00:03]} 4. e4 {[%emt 0:00:02]} d6 {[%emt 0:00:01]} 5. Nf3 {[%emt 0:00:04]} O-O {[%emt 0:00:03]} 6. Be2 {[%emt 0:00:02]} e5 {[%emt 0:00:04]} 7. O-O {[%emt 0:00:10]} Nc6 {[%emt 0:00:09]} 8. d5 {[%emt 0:00:02]} Ne7 {[%emt 0:00:01]} 9. Be3 {[%emt 0:01:41]} Ng4 {[%emt 0:00:43]} 10. Bd2 {[%emt 0:00:02] E97: King's Indian: Classical Main Line (6...e5 7 0-0 Nc6): 8 Be3 and 8 d5 Ne7, not 9 Ne1} f5 {[%emt 0:00:33]} 11. Ng5 {[%emt 0:00:03]} Nf6 {[%emt 0:00:01]} 12. f3 {[%emt 0:00:01]} c6 {[%emt 0:00:57]} 13. Be3 {[%emt 0:00:36] [#]} Ne8 $146 {[%emt 0:01:46]} ({Predecessor:} 13... Kh8 14. Kh1 h6 15. Nh3 f4 16. Bf2 c5 17. a3 g5 {1-0 (51) Sanikidze,T (2537)-Bok,B (2614) Gjakova 2016 CBM 173 [Besenthal,K]}) 14. c5 {[%emt 0:00:59]} h6 {[%emt 0:01:45]} 15. cxd6 {[%emt 0:02:51]} Qxd6 {[%emt 0:00:33]} 16. Nh3 {[%emt 0:01:42]} f4 {[%emt 0:01:45]} 17. Bf2 {[%emt 0:00:29]} Nf6 {[%emt 0:00:47]} 18. Bc4 {[%emt 0:00:42]} Kh7 {[%emt 0:00:12]} 19. Qb3 {[%emt 0:00:14]} cxd5 {[%emt 0:01:01]} 20. exd5 {[%emt 0:00:04]} a6 {[%emt 0:00:05]} 21. a4 {[%emt 0:02:11]} Bxh3 {[%emt 0:01:06]} 22. gxh3 {[%emt 0:00:02]} Qd7 {[%emt 0:00:01]} 23. Kg2 {[%emt 0:00:27]} e4 {[%emt 0:00:04]} 24. Nxe4 {[%emt 0:00:18]} Nxe4 {[%emt 0:03:39]} 25. fxe4 {[%emt 0:00:02]} f3+ {[%emt 0:00:17]} 26. Kh1 {[%emt 0:02:11]} b5 {[%emt 0:00:02]} 27. axb5 {[%emt 0:01:59]} axb5 {[%emt 0:00:02]} 28. Rxa8 {[%emt 0:00:34]} Rxa8 {[%emt 0:00:22]} 29. Qxf3 {[%emt 0:00:44]} bxc4 {[%emt 0:00:04]} 30. Bc5 {[%emt 0:00:18]} Rf8 {[%emt 0:00:33]} 31. Qg2 {[%emt 0:00:27]} Rxf1+ {[%emt 0:00:06]} 32. Qxf1 {[%emt 0:00:02]} Nxd5 {[%emt 0:00:01]} 33. Qxc4 {[%emt 0:00:15]} Nf4 {[%emt 0:00:13]} 34. Qf1 {[%emt 0:00:20]} g5 {[%emt 0:00:05]} 35. b4 {[%emt 0:00:08]} Qe6 {[%emt 0:00:11]} 36. Qf3 {[%emt 0:00:11]} Qc4 {[%emt 0:00:04]} 37. Kg1 {[%emt 0:00:08]} Qc1+ {[%emt 0:00:20]} 38. Kf2 {[%emt 0:00:02]} Qd2+ {[%emt 0:00:09]} 39. Kg3 {[%emt 0:00:11]} Be5 {[%emt 0:00:49]} 40. Kg4 {[%emt 0:00:08]} Kg6 {[%emt 0:00:07]} 41. Qf2 {[%emt 0:00:33]} h5+ {[%emt 0:00:16]} 42. Kf3 {[%emt 0:00:12]} Qd1+ {[%emt 0:00:04]} 43. Ke3 {[%emt 0:00:45]} Qd3# {[%emt 0:00:03]} 0-1

[Event "29th Czech Open-Rapid 2018"]
[Site "Pardubice"]
[Date "2018.07.19"]
[Round "4"]
[White "Sinauridze, Simons"]
[Black "Pavlicek, Lukas"]
[Result "1-0"]
[ECO "B52"]
[WhiteElo "1962"]
[BlackElo "1819"]
[Annotator "NA"]
[PlyCount "55"]
[EventDate "2018.07.18"]
[EventType "swiss"]
[EventCountry "CZE"]
[SourceTitle "playchess.com"]
[Source "ChessBase"]
[SourceQuality "1"]
[TimeControl "900+10"]

1. e4 {[%emt 0:00:00]} c5 {[%emt 0:00:00]} 2. Nf3 {[%emt 0:00:00]} d6 {[%emt 0:00:00]} 3. Bb5+ {[%emt 0:00:00]} Bd7 {[%emt 0:00:08]} 4. Bxd7+ {[%emt 0:00:00]} Qxd7 {[%emt 0:00:15]} 5. O-O {[%emt 0:00:04]} Nc6 {[%emt 0:00:07]} 6. c3 {[%emt 0:00:02]} Nf6 {[%emt 0:00:39]} 7. d4 {[%emt 0:00:03]} Nxe4 {[%emt 0:00:56]} 8. d5 {[%emt 0:00:39]} Nb8 {[%emt 0:01:05]} 9. Re1 {[%emt 0:00:17]} Nf6 {[%emt 0:00:06]} 10. Bg5 {[%emt 0:00:17]} Na6 {[%emt 0:00:31]} 11. c4 {[%emt 0:00:21]} h6 {[%emt 0:00:27]} 12. Bh4 {[%emt 0:00:11]} Nc7 {[%emt 0:01:16]} 13. Nc3 {[%emt 0:00:23]} b5 {[%emt 0:00:15]} 14. cxb5 {[%emt 0:01:26]} Nxb5 {[%emt 0:00:08]} 15. Qd3 {[%emt 0:02:22]} Nxc3 {[%emt 0:00:43]} 16. bxc3 {[%emt 0:00:04]} g5 {[%emt 0:01:39]} 17. Bg3 {[%emt 0:00:01]} Nh5 {[%emt 0:00:26]} 18. Rab1 {[%emt 0:00:22]} Nxg3 {[%emt 0:00:02]} 19. hxg3 {[%emt 0:00:02]} Bg7 {[%emt 0:00:31]} 20. Qa6 {[%emt 0:00:27]} Qc8 {[%emt 0:00:54]} 21. Rb7 {[%emt 0:01:55]} Bf6 {[%emt 0:00:36]} 22. Qxd6 {[%emt 0:03:14]} Qxb7 {[%emt 0:00:35]} 23. Qxf6 {[%emt 0:00:02]} O-O {[%emt 0:00:24]} 24. Qxh6 {[%emt 0:02:50]} Qxd5 {[%emt 0:01:32]} 25. Re5 {[%emt 0:00:53]} Qd1+ {[%emt 0:00:35]} 26. Kh2 {[%emt 0:00:13]} f6 {[%emt 0:00:19]} 27. Qg6+ {[%emt 0:00:19]} Kh8 {[%emt 0:00:02]} 28. Rxe7 {[%emt 0:00:04]} 1-0

[Event "29th Czech Open-Rapid 2018"]
[Site "Pardubice"]
[Date "2018.07.19"]
[Round "4"]
[White "Nehyba, Martin"]
[Black "Natarov, Ilya"]
[Result "1-0"]
[ECO "B02"]
[WhiteElo "1947"]
[BlackElo "1808"]
[Annotator "NA"]
[PlyCount "53"]
[EventDate "2018.07.18"]
[EventType "swiss"]
[EventCountry "CZE"]
[SourceTitle "playchess.com"]
[Source "ChessBase"]
[SourceQuality "1"]
[TimeControl "900+10"]

1. e4 {[%emt 0:00:02]} Nf6 {[%emt 0:00:00]} 2. Nc3 {[%emt 0:00:04]} d5 {[%emt 0:00:00]} 3. exd5 {[%emt 0:00:04]} Nxd5 {[%emt 0:00:00]} 4. Nxd5 {[%emt 0:00:21]} Qxd5 {[%emt 0:00:00]} 5. d4 {[%emt 0:00:05]} Nc6 {[%emt 0:00:13]} 6. c3 {[%emt 0:00:20]} e5 {[%emt 0:00:27]} 7. dxe5 {[%emt 0:00:41]} Qxe5+ {[%emt 0:00:50]} 8. Be2 {[%emt 0:00:25]} Bg4 {[%emt 0:00:37]} 9. Be3 {[%emt 0:00:21]} Bxe2 {[%emt 0:00:24]} 10. Nxe2 {[%emt 0:00:02]} Bc5 {[%emt 0:01:55]} 11. Bf4 {[%emt 0:03:07]} Qe7 {[%emt 0:00:36]} 12. O-O {[%emt 0:00:03]} Rd8 {[%emt 0:02:33]} 13. Qc2 {[%emt 0:00:10]} O-O {[%emt 0:00:07]} 14. Ng3 {[%emt 0:01:29]} Rfe8 {[%emt 0:02:54]} 15. Nf5 {[%emt 0:00:32]} Qe2 {[%emt 0:00:16]} 16. Qc1 {[%emt 0:04:53]} Qe6 {[%emt 0:02:22]} 17. Qb1 {[%emt 0:01:03]} Bb6 {[%emt 0:01:30]} 18. Re1 {[%emt 0:00:18]} Qc4 {[%emt 0:02:34]} 19. Bg5 {[%emt 0:01:40]} f6 {[%emt 0:00:18]} 20. Be3 {[%emt 0:00:43]} Bxe3 {[%emt 0:00:02]} 21. Nxe3 {[%emt 0:00:01]} Qc5 {[%emt 0:00:01]} 22. Qc2 {[%emt 0:00:19]} Kh8 {[%emt 0:00:06]} 23. Rad1 {[%emt 0:00:06]} Ne5 {[%emt 0:00:07]} 24. Qf5 {[%emt 0:01:15]} Qb5 {[%emt 0:00:34]} 25. Ng4 {[%emt 0:00:46]} Rxd1 {[%emt 0:00:23]} 26. Rxd1 {[%emt 0:00:01]} Nxg4 {[%emt 0:00:02]} 27. Qxb5 {[%emt 0:00:04]} 1-0

[Event "29th Czech Open-Rapid 2018"]
[Site "Pardubice"]
[Date "2018.07.19"]
[Round "4"]
[White "Balazec, Ludovit"]
[Black "Lushnikov, Evgeny"]
[Result "0-1"]
[ECO "B23"]
[WhiteElo "1945"]
[BlackElo "2234"]
[Annotator "NA"]
[PlyCount "87"]
[EventDate "2018.07.18"]
[EventType "swiss"]
[EventCountry "CZE"]
[SourceTitle "playchess.com"]
[Source "ChessBase"]
[SourceQuality "1"]
[TimeControl "900+10"]

1. e4 {[%emt 0:00:00]} c5 {[%emt 0:07:49]} 2. Nc3 Nc6 3. Nge2 {[%emt 0:00:07]} e5 {[%emt 0:00:02]} 4. Nd5 {[%emt 0:00:02]} d6 {[%emt 0:00:16]} 5. Nec3 {[%emt 0:00:03]} g6 {[%emt 0:00:10] B23: Closed Sicilian: Lines without g3} (5... Nge7 6. Bc4 a6 7. a4 Nb4 8. d3 Nbxd5 9. Nxd5 Be6 10. f4 Bxd5 11. exd5 exf4 12. Qe2 g5 13. h4 {½-½ (37) Short,N (2677)-Dzagnidze,N (2535) Caleta 2012}) 6. Bc4 {[%emt 0:00:05]} Be6 {[%emt 0:00:10]} 7. O-O {[%emt 0:00:44]} Bg7 {[%emt 0:00:07]} 8. d3 {[%emt 0:00:08]} h6 {[%emt 0:00:40]} 9. a4 $146 {[%emt 0:00:14]} ({Predecessor:} 9. f4 exf4 10. Bxf4 a6 11. Ne3 Nf6 12. Bxe6 fxe6 13. Ng4 Nh5 14. Qd2 Qh4 {½-½ (14) Jacobs,B (2350)-Szekely,P (2420) Cappelle-la-Grande 1989}) 9... Nge7 {[%emt 0:00:24]} 10. f4 {[%emt 0:00:54]} Nd4 {[%emt 0:01:30]} 11. fxe5 {[%emt 0:02:54]} dxe5 {[%emt 0:00:18]} 12. Nxe7 {[%emt 0:01:28]} Qxe7 {[%emt 0:00:10]} 13. Nd5 {[%emt 0:00:34]} Bxd5 {[%emt 0:00:34]} 14. Bxd5 {[%emt 0:00:07]} O-O {[%emt 0:00:05]} 15. c3 {[%emt 0:00:11]} Ne6 {[%emt 0:00:13]} 16. Be3 {[%emt 0:00:46]} Rac8 {[%emt 0:01:23]} 17. Qd2 {[%emt 0:00:23]} Kh7 {[%emt 0:00:17]} 18. Rf3 {[%emt 0:00:21]} f5 {[%emt 0:00:46]} 19. exf5 {[%emt 0:04:13]} Rxf5 {[%emt 0:00:08]} 20. Raf1 {[%emt 0:00:52]} Rxf3 {[%emt 0:00:37]} 21. Rxf3 {[%emt 0:00:10]} Rf8 {[%emt 0:00:02]} 22. Bxe6 {[%emt 0:01:15]} Rxf3 {[%emt 0:00:08]} 23. gxf3 {[%emt 0:00:02]} Qxe6 {[%emt 0:00:01]} 24. Bxc5 {[%emt 0:00:19]} Qc6 {[%emt 0:00:01]} 25. Qf2 {[%emt 0:00:20]} b6 {[%emt 0:00:10]} 26. Be3 {[%emt 0:00:29]} Qxa4 {[%emt 0:00:02]} 27. Kg2 {[%emt 0:00:23]} Kg8 {[%emt 0:01:10]} 28. Qd2 {[%emt 0:00:09]} Qh4 {[%emt 0:00:45]} 29. Qf2 {[%emt 0:00:30]} Qe7 {[%emt 0:00:37]} 30. Qd2 {[%emt 0:00:09]} Kh7 {[%emt 0:00:07]} 31. Qc2 {[%emt 0:00:07]} b5 {[%emt 0:00:21]} 32. Qb3 {[%emt 0:00:25]} a6 {[%emt 0:00:06]} 33. Qc2 {[%emt 0:00:08]} Qd6 {[%emt 0:00:55]} 34. Qd2 {[%emt 0:00:12]} a5 {[%emt 0:00:05]} 35. Qe2 {[%emt 0:00:32]} Qd5 {[%emt 0:00:09]} 36. Qd2 {[%emt 0:00:14]} g5 {[%emt 0:00:08]} 37. h3 {[%emt 0:00:28]} Bf6 {[%emt 0:00:09]} 38. Qc2 {[%emt 0:00:43]} Kg7 {[%emt 0:00:15]} 39. c4 {[%emt 0:00:23]} Qc6 {[%emt 0:00:01]} 40. b3 {[%emt 0:00:05]} a4 {[%emt 0:00:11]} 41. c5 {[%emt 0:00:16]} (41. Bc1 $11) 41... a3 {[%emt 0:00:17]} 42. b4 {[%emt 0:00:12] [#]} Qd5 $11 {[%emt 0:00:09]} (42... h5 $1 $17 43. Kg3 {[#]} e4 $1 {[%mdl 512]} 44. dxe4 Qe6) 43. c6 a2 44. c7 0-1